[Event "*** SCC Grand Prix: Titled Tuesday Blitz"]
[Site "Chess.com"]
[Date "2020.09.29"]
[Round "4"]
[White "TimKett"]
[Black "SanchezKelvin"]
[Result "0-1"]
[WhiteElo "2163"]
[BlackElo "2384"]
[TimeControl "180+1"]
[EndTime "10:37:44 PDT"]
[Termination "SanchezKelvin won by checkmate"]

1. e4 {[%clk 0:03:00.9]} 1... c5 {[%clk 0:02:59.4]} 2. Nf3 {[%clk 0:02:59.9]}
2... d6 {[%clk 0:02:56.5]} 3. d4 {[%clk 0:02:59]} 3... cxd4 {[%clk 0:02:56]} 4.
Nxd4 {[%clk 0:02:59.5]} 4... Nf6 {[%clk 0:02:56.3]} 5. Nc3 {[%clk 0:03:00]} 5...
g6 {[%clk 0:02:56.6]} 6. Be3 {[%clk 0:02:59.1]} 6... Bg7 {[%clk 0:02:56.5]} 7.
f3 {[%clk 0:02:59.2]} 7... O-O {[%clk 0:02:55.1]} 8. Qd2 {[%clk 0:02:59.5]} 8...
Nc6 {[%clk 0:02:56]} 9. Bc4 {[%clk 0:02:59.6]} 9... Ne5 {[%clk 0:02:56]} 10. Bb3
{[%clk 0:02:59.4]} 10... Bd7 {[%clk 0:02:56.1]} 11. O-O-O {[%clk 0:02:59.4]}
11... Rc8 {[%clk 0:02:55.9]} 12. Kb1 {[%clk 0:02:59.5]} 12... Re8 {[%clk
0:02:55.4]} 13. g4 {[%clk 0:02:55.3]} 13... b5 {[%clk 0:02:54.6]} 14. h4 {[%clk
0:02:52.2]} 14... b4 {[%clk 0:02:49.3]} 15. Nd5 {[%clk 0:02:50.8]} 15... Nxd5
{[%clk 0:02:49]} 16. Bxd5 {[%clk 0:02:35.4]} 16... e6 {[%clk 0:02:48.8]} 17. Bb3
{[%clk 0:02:34.1]} 17... a5 {[%clk 0:02:48.4]} 18. h5 {[%clk 0:01:56.8]} 18...
a4 {[%clk 0:02:45.9]} 19. Bxe6 {[%clk 0:01:52.6]} 19... Bxe6 {[%clk 0:02:38.4]}
20. hxg6 {[%clk 0:01:52.6]} 20... hxg6 {[%clk 0:02:33.2]} 21. Qh2 {[%clk
0:01:47]} 21... Qf6 {[%clk 0:01:57.3]} 22. Qh7+ {[%clk 0:01:04.9]} 22... Kf8
{[%clk 0:01:55.7]} 23. g5 {[%clk 0:01:04.8]} 23... Qd8 {[%clk 0:01:52.3]} 24. f4
{[%clk 0:00:51.2]} 24... Nc4 {[%clk 0:01:49.6]} 25. Nxe6+ {[%clk 0:00:50.4]}
25... Rxe6 {[%clk 0:01:46.2]} 26. Bd4 {[%clk 0:00:48.1]} 26... Bxd4 {[%clk
0:01:41.2]} 27. Rxd4 {[%clk 0:00:47.7]} 27... Qb6 {[%clk 0:01:19.5]} 28. Qh8+
{[%clk 0:00:47.1]} 28... Ke7 {[%clk 0:01:17.4]} 29. Qxc8 {[%clk 0:00:47.4]}
29... Qxd4 {[%clk 0:00:54]} 30. Qc7+ {[%clk 0:00:46.8]} 30... Kf8 {[%clk
0:00:49.6]} 31. e5 {[%clk 0:00:24.2]} 31... Qxb2# {[%clk 0:00:47.6]} 0-1

[Event "*** SCC Grand Prix: Titled Tuesday Blitz"]
[Site "Chess.com"]
[Date "2020.09.29"]
[Round "4"]
[White "fighter2jz"]
[Black "KarstenHansch"]
[Result "0-1"]
[WhiteElo "2638"]
[BlackElo "2472"]
[TimeControl "180+1"]
[EndTime "10:37:46 PDT"]
[Termination "KarstenHansch won on time"]

1. e4 {[%clk 0:02:53]} 1... c6 {[%clk 0:03:00.3]} 2. d4 {[%clk 0:02:52.5]} 2...
d5 {[%clk 0:03:01.2]} 3. e5 {[%clk 0:02:53.1]} 3... Bf5 {[%clk 0:03:00.6]} 4.
Nf3 {[%clk 0:02:53.1]} 4... e6 {[%clk 0:03:00.8]} 5. Be2 {[%clk 0:02:53.5]} 5...
c5 {[%clk 0:03:01]} 6. Be3 {[%clk 0:02:52.8]} 6... Qb6 {[%clk 0:03:00.8]} 7. Nc3
{[%clk 0:02:48.7]} 7... Nc6 {[%clk 0:03:00.4]} 8. O-O {[%clk 0:02:45.9]} 8...
Qxb2 {[%clk 0:02:59.7]} 9. Qe1 {[%clk 0:02:45.2]} 9... cxd4 {[%clk 0:02:59.6]}
10. Bxd4 {[%clk 0:02:44.9]} 10... Nxd4 {[%clk 0:02:58.3]} 11. Nxd4 {[%clk
0:02:44.8]} 11... Bb4 {[%clk 0:02:58.2]} 12. Rb1 {[%clk 0:01:50.6]} 12... Bxc3
{[%clk 0:02:53.3]} 13. Rxb2 {[%clk 0:01:34.4]} 13... Bxe1 {[%clk 0:02:53.3]} 14.
Rxe1 {[%clk 0:01:33.2]} 14... b6 {[%clk 0:02:53.7]} 15. Bb5+ {[%clk 0:01:30.6]}
15... Kf8 {[%clk 0:02:48.8]} 16. Nxf5 {[%clk 0:01:09.6]} 16... exf5 {[%clk
0:02:47.4]} 17. Bc6 {[%clk 0:01:09.8]} 17... Rd8 {[%clk 0:02:45.4]} 18. e6
{[%clk 0:00:59]} 18... Ne7 {[%clk 0:02:42.3]} 19. Bd7 {[%clk 0:00:57.5]} 19...
h5 {[%clk 0:02:15.1]} 20. a4 {[%clk 0:00:28.8]} 20... Rh6 {[%clk 0:02:06.1]} 21.
h3 {[%clk 0:00:27.3]} 21... fxe6 {[%clk 0:01:56]} 22. Bxe6 {[%clk 0:00:26.3]}
22... Rd6 {[%clk 0:01:56.1]} 23. Bxf5 {[%clk 0:00:06.7]} 23... Nxf5 {[%clk
0:01:55.7]} 24. Rb3 {[%clk 0:00:07.2]} 24... Rhf6 {[%clk 0:01:54.8]} 25. Rd3
{[%clk 0:00:06.8]} 25... Kf7 {[%clk 0:01:52.7]} 26. Re5 {[%clk 0:00:06.5]} 26...
g6 {[%clk 0:01:47.7]} 27. Rexd5 {[%clk 0:00:05.9]} 27... Rxd5 {[%clk 0:01:46.8]}
28. Rxd5 {[%clk 0:00:06.8]} 28... Rd6 {[%clk 0:01:47.4]} 29. Re5 {[%clk
0:00:06.6]} 29... Rd1+ {[%clk 0:01:47.3]} 30. Kh2 {[%clk 0:00:06]} 30... Rd2
{[%clk 0:01:47.7]} 31. g4 {[%clk 0:00:05]} 31... Nd4 {[%clk 0:01:42.4]} 32. Kg3
{[%clk 0:00:04.7]} 32... hxg4 {[%clk 0:01:41.2]} 33. hxg4 {[%clk 0:00:05.6]}
33... Nxc2 {[%clk 0:01:39.6]} 34. a5 {[%clk 0:00:04]} 34... Rd3+ {[%clk
0:01:35.9]} 35. Kh4 {[%clk 0:00:03.1]} 35... Nd4 {[%clk 0:01:24.8]} 0-1

[Event "*** SCC Grand Prix: Titled Tuesday Blitz"]
[Site "Chess.com"]
[Date "2020.09.29"]
[Round "4"]
[White "Sjakkerntobi"]
[Black "GjakanTati"]
[Result "1-0"]
[WhiteElo "2427"]
[BlackElo "2615"]
[TimeControl "180+1"]
[EndTime "10:37:50 PDT"]
[Termination "Sjakkerntobi won by resignation"]

1. e4 {[%clk 0:03:00.9]} 1... e5 {[%clk 0:02:53.7]} 2. Nf3 {[%clk 0:03:00.8]}
2... Nc6 {[%clk 0:02:51.9]} 3. Bb5 {[%clk 0:03:01.4]} 3... Nf6 {[%clk
0:02:49.6]} 4. O-O {[%clk 0:02:59.7]} 4... Nxe4 {[%clk 0:02:49.4]} 5. Re1 {[%clk
0:02:59.2]} 5... Nd6 {[%clk 0:02:49.6]} 6. Nxe5 {[%clk 0:02:59.2]} 6... Be7
{[%clk 0:02:49.2]} 7. Bf1 {[%clk 0:02:57.6]} 7... Nxe5 {[%clk 0:02:49.4]} 8.
Rxe5 {[%clk 0:02:57.7]} 8... O-O {[%clk 0:02:49.9]} 9. d4 {[%clk 0:02:53.4]}
9... Bf6 {[%clk 0:02:50.4]} 10. Re1 {[%clk 0:02:53.1]} 10... Re8 {[%clk
0:02:50.9]} 11. Rxe8+ {[%clk 0:02:46.6]} 11... Nxe8 {[%clk 0:02:51.8]} 12. c4
{[%clk 0:02:47.5]} 12... c6 {[%clk 0:02:39.4]} 13. Nc3 {[%clk 0:02:45.8]} 13...
d5 {[%clk 0:02:32.7]} 14. cxd5 {[%clk 0:02:35.4]} 14... cxd5 {[%clk 0:02:33.6]}
15. Bf4 {[%clk 0:02:34.9]} 15... Be6 {[%clk 0:02:32.3]} 16. Be5 {[%clk
0:02:09.3]} 16... Be7 {[%clk 0:02:30.2]} 17. Qb3 {[%clk 0:02:07]} 17... Qb6
{[%clk 0:02:25.9]} 18. Qxb6 {[%clk 0:01:51.4]} 18... axb6 {[%clk 0:02:26.8]} 19.
Be2 {[%clk 0:01:52.3]} 19... f6 {[%clk 0:02:25.5]} 20. Bf4 {[%clk 0:01:51.6]}
20... Nd6 {[%clk 0:02:22.9]} 21. Bf3 {[%clk 0:01:51.7]} 21... Ra5 {[%clk
0:02:21.4]} 22. b4 {[%clk 0:01:44.5]} 22... Ra8 {[%clk 0:02:17.1]} 23. Nxd5
{[%clk 0:01:44.2]} 23... Bxd5 {[%clk 0:02:10.3]} 24. Bxd5+ {[%clk 0:01:45.1]}
24... Kf8 {[%clk 0:02:10.7]} 25. g4 {[%clk 0:01:17.5]} 25... Ra3 {[%clk
0:02:06.4]} 26. Rc1 {[%clk 0:01:03.9]} 26... g6 {[%clk 0:02:03.5]} 27. Rc7
{[%clk 0:00:52.8]} 27... Nb5 {[%clk 0:02:03.1]} 28. Rc8+ {[%clk 0:00:28.3]}
28... Bd8 {[%clk 0:02:01.1]} 29. Rxd8+ {[%clk 0:00:28.4]} 29... Ke7 {[%clk
0:02:00.6]} 30. Rb8 {[%clk 0:00:22.1]} 30... Nc3 {[%clk 0:02:00.5]} 31. Rxb7+
{[%clk 0:00:21.9]} 31... Kd8 {[%clk 0:02:00]} 32. Bf3 {[%clk 0:00:17.2]} 32...
Nb5 {[%clk 0:01:56.5]} 33. Kg2 {[%clk 0:00:08.7]} 33... Nxd4 {[%clk 0:01:56.2]}
34. Be4 {[%clk 0:00:09.1]} 34... Ne2 {[%clk 0:01:53.6]} 35. Be3 {[%clk
0:00:09.2]} 35... Nc3 {[%clk 0:01:53.3]} 36. Bf3 {[%clk 0:00:09.2]} 36... Nxa2
{[%clk 0:01:52.1]} 37. Rxb6 {[%clk 0:00:09.6]} 37... f5 {[%clk 0:01:48.7]} 38.
Rb8+ {[%clk 0:00:09.8]} 38... Kc7 {[%clk 0:01:47.5]} 39. Rh8 {[%clk 0:00:10.4]}
39... fxg4 {[%clk 0:01:46.5]} 40. Bxg4 {[%clk 0:00:11.3]} 40... Nxb4 {[%clk
0:01:46.2]} 41. Rxh7+ {[%clk 0:00:10.5]} 41... Kc6 {[%clk 0:01:46.3]} 42. Bf3+
{[%clk 0:00:10.2]} 42... Kd6 {[%clk 0:01:46]} 43. Rg7 {[%clk 0:00:10.6]} 43...
Nc2 {[%clk 0:01:45.3]} 44. Rxg6+ {[%clk 0:00:10.5]} 44... Ke5 {[%clk 0:01:45.6]}
45. Rg5+ {[%clk 0:00:08.7]} 45... Kf6 {[%clk 0:01:45.2]} 46. Bf4 {[%clk
0:00:09.2]} 46... Nd4 {[%clk 0:01:45.2]} 47. Bg4 {[%clk 0:00:08.5]} 47... Ne6
{[%clk 0:01:44]} 48. Bxe6 {[%clk 0:00:08.9]} 48... Kxe6 {[%clk 0:01:43.4]} 49.
Re5+ {[%clk 0:00:09.5]} 1-0

[Event "*** SCC Grand Prix: Titled Tuesday Blitz"]
[Site "Chess.com"]
[Date "2020.09.29"]
[Round "4"]
[White "vaishali2001"]
[Black "PavelShkapenko"]
[Result "0-1"]
[WhiteElo "2499"]
[BlackElo "2706"]
[TimeControl "180+1"]
[EndTime "10:37:54 PDT"]
[Termination "PavelShkapenko won by resignation"]

1. Nf3 {[%clk 0:03:00.9]} 1... Nf6 {[%clk 0:02:50.4]} 2. g3 {[%clk 0:03:01.2]}
2... d5 {[%clk 0:02:50.1]} 3. Bg2 {[%clk 0:03:01.4]} 3... c6 {[%clk 0:02:50.5]}
4. O-O {[%clk 0:03:00.6]} 4... Bg4 {[%clk 0:02:50.5]} 5. d3 {[%clk 0:02:59.7]}
5... Nbd7 {[%clk 0:02:48.8]} 6. h3 {[%clk 0:02:57.6]} 6... Bh5 {[%clk
0:02:47.9]} 7. c4 {[%clk 0:02:57.2]} 7... e6 {[%clk 0:02:48]} 8. Qb3 {[%clk
0:02:44]} 8... Qb6 {[%clk 0:02:46.6]} 9. Be3 {[%clk 0:02:42.9]} 9... Bc5 {[%clk
0:02:40]} 10. Bxc5 {[%clk 0:02:31]} 10... Nxc5 {[%clk 0:02:39.6]} 11. Qxb6
{[%clk 0:02:03.9]} 11... axb6 {[%clk 0:02:38.2]} 12. g4 {[%clk 0:02:01]} 12...
Bg6 {[%clk 0:02:36.5]} 13. Ne5 {[%clk 0:02:01.2]} 13... Nb3 {[%clk 0:02:32]} 14.
axb3 {[%clk 0:01:52.1]} 14... Rxa1 {[%clk 0:02:31.9]} 15. h4 {[%clk 0:01:31.6]}
15... h6 {[%clk 0:02:19.3]} 16. g5 {[%clk 0:01:14.2]} 16... hxg5 {[%clk
0:02:18.7]} 17. hxg5 {[%clk 0:01:15.1]} 17... Nd7 {[%clk 0:02:14.3]} 18. Nxg6
{[%clk 0:01:14.2]} 18... fxg6 {[%clk 0:02:14.8]} 19. f4 {[%clk 0:01:08.5]} 19...
Ke7 {[%clk 0:02:09.1]} 20. Kf2 {[%clk 0:01:05.1]} 20... Nc5 {[%clk 0:02:05.2]}
21. b4 {[%clk 0:00:55.8]} 21... Na6 {[%clk 0:01:55.8]} 22. b5 {[%clk 0:00:55]}
22... Nc7 {[%clk 0:01:56.3]} 23. bxc6 {[%clk 0:00:51.8]} 23... bxc6 {[%clk
0:01:56.2]} 24. Kg3 {[%clk 0:00:44]} 24... Rha8 {[%clk 0:01:37.8]} 25. Rc1
{[%clk 0:00:35.6]} 25... Kd7 {[%clk 0:01:10]} 26. cxd5 {[%clk 0:00:26]} 26...
cxd5 {[%clk 0:01:04.9]} 27. e4 {[%clk 0:00:25.9]} 27... R8a2 {[%clk 0:01:01.3]}
28. exd5 {[%clk 0:00:23.6]} 28... Nxd5 {[%clk 0:00:59.9]} 29. Re1 {[%clk
0:00:20.6]} 29... Rxb2 {[%clk 0:00:54.4]} 30. Bh3 {[%clk 0:00:18.7]} 30... Nc7
{[%clk 0:00:51.3]} 0-1

[Event "*** SCC Grand Prix: Titled Tuesday Blitz"]
[Site "Chess.com"]
[Date "2020.09.29"]
[Round "4"]
[White "Maghalashvili"]
[Black "Onischuk_V"]
[Result "1/2-1/2"]
[WhiteElo "2716"]
[BlackElo "2889"]
[TimeControl "180+1"]
[EndTime "10:37:55 PDT"]
[Termination "Game drawn by agreement"]

1. Nf3 {[%clk 0:02:59.9]} 1... g6 {[%clk 0:02:59.6]} 2. g3 {[%clk 0:02:57.7]}
2... Bg7 {[%clk 0:03:00.1]} 3. d4 {[%clk 0:02:58.3]} 3... d6 {[%clk 0:03:00.1]}
4. Bg2 {[%clk 0:02:57.9]} 4... Nf6 {[%clk 0:03:00.7]} 5. O-O {[%clk 0:02:58.2]}
5... O-O {[%clk 0:03:01.2]} 6. c4 {[%clk 0:02:58.7]} 6... Nc6 {[%clk 0:03:01.8]}
7. Nc3 {[%clk 0:02:58.6]} 7... e5 {[%clk 0:03:02.4]} 8. dxe5 {[%clk 0:02:56.9]}
8... dxe5 {[%clk 0:03:02.6]} 9. Qxd8 {[%clk 0:02:52.4]} 9... Rxd8 {[%clk
0:03:01.8]} 10. Bg5 {[%clk 0:02:50.2]} 10... Be6 {[%clk 0:03:01.1]} 11. Nd2
{[%clk 0:02:43.5]} 11... h6 {[%clk 0:02:58.8]} 12. Bxf6 {[%clk 0:02:40.4]} 12...
Bxf6 {[%clk 0:02:58.9]} 13. Nd5 {[%clk 0:02:36.4]} 13... Bxd5 {[%clk 0:02:57.1]}
14. cxd5 {[%clk 0:02:37.3]} 14... Nb4 {[%clk 0:02:45.4]} 15. e4 {[%clk
0:02:22.9]} 15... Be7 {[%clk 0:02:26.3]} 16. Nc4 {[%clk 0:02:15]} 16... f6
{[%clk 0:02:25.9]} 17. Rfc1 {[%clk 0:01:58.4]} 17... a5 {[%clk 0:02:05.1]} 18.
Bf1 {[%clk 0:01:49.7]} 18... a4 {[%clk 0:01:46.5]} 19. a3 {[%clk 0:01:37.3]}
19... Na6 {[%clk 0:01:46.5]} 20. Na5 {[%clk 0:01:28.6]} 20... Nc5 {[%clk
0:01:46.2]} 21. Rxc5 {[%clk 0:01:28.3]} 21... Bxc5 {[%clk 0:01:45.5]} 22. Nxb7
{[%clk 0:01:28.5]} 22... Bd4 {[%clk 0:01:36.8]} 23. Nxd8 {[%clk 0:01:27.1]}
23... Rxd8 {[%clk 0:01:36.6]} 24. Rc1 {[%clk 0:01:02.3]} 24... Bxb2 {[%clk
0:01:29.6]} 25. Rxc7 {[%clk 0:00:56.9]} 25... Bxa3 {[%clk 0:01:24.7]} 26. Ra7
{[%clk 0:00:54.6]} 26... Bc5 {[%clk 0:01:18.3]} 27. Rxa4 {[%clk 0:00:53.5]}
27... f5 {[%clk 0:01:18.6]} 28. exf5 {[%clk 0:00:38.9]} 28... gxf5 {[%clk
0:01:18]} 29. Bh3 {[%clk 0:00:26.4]} 29... Rxd5 {[%clk 0:01:07.8]} 30. Bxf5
{[%clk 0:00:24.7]} 30... Rd2 {[%clk 0:01:04.7]} 31. Ra2 {[%clk 0:00:19.6]} 31...
Bxf2+ {[%clk 0:01:00.4]} 32. Kg2 {[%clk 0:00:18.3]} 32... Rxa2 {[%clk
0:00:59.7]} 33. Be6+ {[%clk 0:00:18.2]} 33... Kg7 {[%clk 0:01:00.1]} 34. Bxa2
{[%clk 0:00:19.1]} 34... Bd4 {[%clk 0:01:00.1]} 35. Kf3 {[%clk 0:00:19.3]}
1/2-1/2

[Event "*** SCC Grand Prix: Titled Tuesday Blitz"]
[Site "Chess.com"]
[Date "2020.09.29"]
[Round "4"]
[White "VMikhalevski"]
[Black "Fandorine"]
[Result "0-1"]
[WhiteElo "2723"]
[BlackElo "2913"]
[TimeControl "180+1"]
[EndTime "10:37:57 PDT"]
[Termination "Fandorine won by resignation"]

1. d4 {[%clk 0:03:00.9]} 1... Nf6 {[%clk 0:03:00]} 2. Nf3 {[%clk 0:03:00.7]}
2... g6 {[%clk 0:03:00.5]} 3. g3 {[%clk 0:03:00.3]} 3... Bg7 {[%clk 0:03:01.1]}
4. Bg2 {[%clk 0:03:00.6]} 4... O-O {[%clk 0:03:02]} 5. O-O {[%clk 0:03:00.6]}
5... d6 {[%clk 0:03:02.5]} 6. b3 {[%clk 0:03:00.5]} 6... e5 {[%clk 0:03:03]} 7.
dxe5 {[%clk 0:03:00.2]} 7... dxe5 {[%clk 0:03:03.9]} 8. Ba3 {[%clk 0:02:59.9]}
8... e4 {[%clk 0:03:02.9]} 9. Bxf8 {[%clk 0:02:49.3]} 9... Qxf8 {[%clk
0:03:03.8]} 10. Nd4 {[%clk 0:02:48.8]} 10... e3 {[%clk 0:03:02.7]} 11. f4 {[%clk
0:02:40.4]} 11... Nc6 {[%clk 0:03:01.9]} 12. Nxc6 {[%clk 0:02:33.1]} 12... bxc6
{[%clk 0:03:02.2]} 13. Nc3 {[%clk 0:02:30.3]} 13... Bf5 {[%clk 0:03:02.1]} 14.
Qc1 {[%clk 0:02:22.7]} 14... h5 {[%clk 0:02:53.1]} 15. Qxe3 {[%clk 0:02:15.6]}
15... Ng4 {[%clk 0:02:50.9]} 16. Qf3 {[%clk 0:02:12.6]} 16... Qc5+ {[%clk
0:02:48.2]} 17. Kh1 {[%clk 0:02:12.6]} 17... Bxc3 {[%clk 0:02:44.5]} 18. Rad1
{[%clk 0:02:00.4]} 18... Re8 {[%clk 0:02:43.9]} 19. h3 {[%clk 0:01:34]} 19...
Be4 {[%clk 0:02:09.1]} 20. hxg4 {[%clk 0:01:21.6]} 20... Bxf3 {[%clk 0:02:08.8]}
21. Bxf3 {[%clk 0:01:22.2]} 21... hxg4 {[%clk 0:02:06.4]} 22. Bxg4 {[%clk
0:01:22]} 22... Kg7 {[%clk 0:02:03.9]} 23. Kg2 {[%clk 0:01:21.5]} 23... Qa3
{[%clk 0:01:53.3]} 24. Rd3 {[%clk 0:01:15.1]} 24... Bf6 {[%clk 0:01:49.6]} 25.
Rf2 {[%clk 0:00:59.8]} 25... Qxa2 {[%clk 0:01:44.4]} 26. e3 {[%clk 0:01:00]}
26... Qa5 {[%clk 0:01:33.3]} 27. Bf3 {[%clk 0:00:55.3]} 27... Rd8 {[%clk
0:01:26.5]} 28. Rxd8 {[%clk 0:00:51.6]} 28... Bxd8 {[%clk 0:01:27.4]} 29. Re2
{[%clk 0:00:48]} 29... Qc3 {[%clk 0:01:24.7]} 30. Kf2 {[%clk 0:00:43.8]} 30...
Be7 {[%clk 0:01:21.6]} 31. Kg2 {[%clk 0:00:42.3]} 31... a5 {[%clk 0:01:21.4]}
32. Kf2 {[%clk 0:00:40.2]} 32... Bc5 {[%clk 0:01:18.2]} 33. Be4 {[%clk 0:00:38]}
33... Bb6 {[%clk 0:01:09.6]} 34. Bf3 {[%clk 0:00:36.9]} 34... c5 {[%clk
0:01:06]} 35. Bd5 {[%clk 0:00:36.7]} 35... c4 {[%clk 0:01:06.2]} 36. Kf3 {[%clk
0:00:29.1]} 36... cxb3 {[%clk 0:01:05.7]} 37. cxb3 {[%clk 0:00:27.7]} 37... c6
{[%clk 0:01:06.3]} 38. Be4 {[%clk 0:00:27.1]} 38... Qxb3 {[%clk 0:01:04.1]} 39.
Bxc6 {[%clk 0:00:26.6]} 39... a4 {[%clk 0:01:04.3]} 0-1

[Event "*** SCC Grand Prix: Titled Tuesday Blitz"]
[Site "Chess.com"]
[Date "2020.09.29"]
[Round "4"]
[White "Fy_Rakotomaharo"]
[Black "renehp"]
[Result "1-0"]
[WhiteElo "2676"]
[BlackElo "2466"]
[TimeControl "180+1"]
[EndTime "10:38:00 PDT"]
[Termination "Fy_Rakotomaharo won by resignation"]

1. e4 {[%clk 0:03:00.9]} 1... d5 {[%clk 0:02:59.6]} 2. exd5 {[%clk 0:02:58.9]}
2... Nf6 {[%clk 0:02:59.5]} 3. c4 {[%clk 0:02:58.8]} 3... c6 {[%clk 0:02:59.2]}
4. d4 {[%clk 0:02:56.8]} 4... cxd5 {[%clk 0:02:59.1]} 5. Nc3 {[%clk 0:02:57.3]}
5... Nc6 {[%clk 0:02:59.4]} 6. Nf3 {[%clk 0:02:56.1]} 6... g6 {[%clk 0:02:59.1]}
7. cxd5 {[%clk 0:02:54.7]} 7... Nxd5 {[%clk 0:03:00]} 8. Qb3 {[%clk 0:02:54.6]}
8... Nxc3 {[%clk 0:02:57.5]} 9. Bc4 {[%clk 0:02:53.6]} 9... Nd5 {[%clk
0:02:56.1]} 10. Bxd5 {[%clk 0:02:53.5]} 10... e6 {[%clk 0:02:56]} 11. Bxc6+
{[%clk 0:02:54]} 11... bxc6 {[%clk 0:02:55.8]} 12. Bg5 {[%clk 0:02:54.2]} 12...
Qa5+ {[%clk 0:02:43.9]} 13. Bd2 {[%clk 0:02:49.7]} 13... Qa6 {[%clk 0:02:36.3]}
14. h4 {[%clk 0:02:40.6]} 14... h5 {[%clk 0:02:35.1]} 15. Rc1 {[%clk 0:02:39.1]}
15... Bd6 {[%clk 0:02:29.4]} 16. Ne5 {[%clk 0:02:33.9]} 16... Rb8 {[%clk
0:02:09.7]} 17. Qc2 {[%clk 0:01:50.9]} 17... Bxe5 {[%clk 0:02:08.7]} 18. dxe5
{[%clk 0:01:51.2]} 18... O-O {[%clk 0:02:05.5]} 19. b3 {[%clk 0:01:48.2]} 19...
Rd8 {[%clk 0:01:49.6]} 20. Be3 {[%clk 0:01:33.1]} 20... c5 {[%clk 0:01:42.8]}
21. Qe2 {[%clk 0:01:29.8]} 21... c4 {[%clk 0:01:20.7]} 22. bxc4 {[%clk 0:00:54]}
22... Qa5+ {[%clk 0:01:16.4]} 23. Bd2 {[%clk 0:00:45.3]} 23... Qxa2 {[%clk
0:01:11.8]} 24. Bc3 {[%clk 0:00:44.4]} 24... Rb1 {[%clk 0:00:46.2]} 25. Qxa2
{[%clk 0:00:35.7]} 25... Rxc1+ {[%clk 0:00:45.6]} 26. Ke2 {[%clk 0:00:35.5]}
26... Rxh1 {[%clk 0:00:46.5]} 27. Qxa7 {[%clk 0:00:34.8]} 27... Rxh4 {[%clk
0:00:45.5]} 28. Qe7 {[%clk 0:00:32.3]} 28... Re4+ {[%clk 0:00:34.1]} 29. Kf3
{[%clk 0:00:32.4]} 1-0

[Event "*** SCC Grand Prix: Titled Tuesday Blitz"]
[Site "Chess.com"]
[Date "2020.09.29"]
[Round "4"]
[White "parintele_chess"]
[Black "ChelsieMonica"]
[Result "0-1"]
[WhiteElo "2144"]
[BlackElo "2378"]
[TimeControl "180+1"]
[EndTime "10:38:00 PDT"]
[Termination "ChelsieMonica won on time"]

1. d4 {[%clk 0:02:58.8]} 1... Nf6 {[%clk 0:02:59.7]} 2. c4 {[%clk 0:02:58.6]}
2... e6 {[%clk 0:02:59.4]} 3. Nc3 {[%clk 0:02:58.5]} 3... Bb4 {[%clk 0:02:59]}
4. e3 {[%clk 0:02:58.5]} 4... O-O {[%clk 0:02:58.2]} 5. Ne2 {[%clk 0:02:58.8]}
5... d5 {[%clk 0:02:54.6]} 6. a3 {[%clk 0:02:58.8]} 6... Bxc3+ {[%clk
0:02:54.7]} 7. Nxc3 {[%clk 0:02:59.7]} 7... c5 {[%clk 0:02:55.6]} 8. dxc5 {[%clk
0:02:52.7]} 8... a5 {[%clk 0:02:55.8]} 9. cxd5 {[%clk 0:02:48.7]} 9... exd5
{[%clk 0:02:56.7]} 10. Bd3 {[%clk 0:02:48.2]} 10... Nbd7 {[%clk 0:02:55.8]} 11.
O-O {[%clk 0:02:42.8]} 11... Nxc5 {[%clk 0:02:55.8]} 12. Bc2 {[%clk 0:02:42.4]}
12... Bg4 {[%clk 0:02:51.9]} 13. Qd4 {[%clk 0:02:37.2]} 13... Ne6 {[%clk
0:02:39.4]} 14. Qe5 {[%clk 0:02:34.6]} 14... Rc8 {[%clk 0:02:21.2]} 15. Bf5
{[%clk 0:02:09.6]} 15... Nd7 {[%clk 0:01:56]} 16. Qxd5 {[%clk 0:02:03.2]} 16...
Rc5 {[%clk 0:01:54]} 17. Bxh7+ {[%clk 0:01:53.2]} 17... Kxh7 {[%clk 0:01:53.2]}
18. Qxb7 {[%clk 0:01:43]} 18... Qc7 {[%clk 0:01:48.2]} 19. Qe4+ {[%clk 0:01:33]}
19... Bf5 {[%clk 0:01:47.8]} 20. Qh4+ {[%clk 0:01:33.2]} 20... Kg8 {[%clk
0:01:47.7]} 21. e4 {[%clk 0:01:33.5]} 21... Bg6 {[%clk 0:01:46.4]} 22. Nd5
{[%clk 0:01:28.4]} 22... Qd8 {[%clk 0:01:42.5]} 23. Ne7+ {[%clk 0:01:24.5]}
23... Qxe7 {[%clk 0:01:33.9]} 24. Qxe7 {[%clk 0:01:25.4]} 24... Nf6 {[%clk
0:01:29.9]} 25. f3 {[%clk 0:00:57.2]} 25... Rd8 {[%clk 0:01:27.1]} 26. Qa7
{[%clk 0:00:49.2]} 26... Rc7 {[%clk 0:01:22.2]} 27. Qxa5 {[%clk 0:00:41.2]}
27... Rd3 {[%clk 0:01:22.1]} 28. Bg5 {[%clk 0:00:24.4]} 28... Rc5 {[%clk
0:01:21.8]} 29. Qa8+ {[%clk 0:00:14.9]} 29... Rd8 {[%clk 0:01:21.2]} 30. Qa7
{[%clk 0:00:13.5]} 30... Rxg5 {[%clk 0:01:19.5]} 31. b4 {[%clk 0:00:13.1]} 31...
Nf4 {[%clk 0:01:18.5]} 32. g3 {[%clk 0:00:03.4]} 32... Nh3+ {[%clk 0:01:12.9]}
33. Kh1 {[%clk 0:00:02.9]} 33... Rh5 {[%clk 0:01:11.1]} 0-1

[Event "*** SCC Grand Prix: Titled Tuesday Blitz"]
[Site "Chess.com"]
[Date "2020.09.29"]
[Round "4"]
[White "venus02"]
[Black "Roman_Ovetchkin"]
[Result "1-0"]
[WhiteElo "2457"]
[BlackElo "2636"]
[TimeControl "180+1"]
[EndTime "10:38:01 PDT"]
[Termination "venus02 won by resignation"]

1. e4 {[%clk 0:03:00]} 1... c6 {[%clk 0:03:00]} 2. d4 {[%clk 0:02:59.7]} 2... d5
{[%clk 0:03:00.9]} 3. e5 {[%clk 0:03:00.1]} 3... Bf5 {[%clk 0:03:00.6]} 4. h4
{[%clk 0:03:00.5]} 4... Qb6 {[%clk 0:02:55.7]} 5. Nc3 {[%clk 0:02:53.9]} 5... h5
{[%clk 0:02:54.7]} 6. Nf3 {[%clk 0:02:51.7]} 6... e6 {[%clk 0:02:54.5]} 7. Bd3
{[%clk 0:02:48.7]} 7... Bg4 {[%clk 0:02:52.6]} 8. Be2 {[%clk 0:02:46.4]} 8... c5
{[%clk 0:02:49.6]} 9. dxc5 {[%clk 0:02:34.8]} 9... Bxc5 {[%clk 0:02:47.4]} 10.
O-O {[%clk 0:02:34.7]} 10... Bxf3 {[%clk 0:02:34.3]} 11. Bxf3 {[%clk 0:02:33.3]}
11... Qc7 {[%clk 0:02:23.6]} 12. Re1 {[%clk 0:02:00.7]} 12... Ne7 {[%clk
0:02:16.6]} 13. Bg5 {[%clk 0:01:59.1]} 13... Nbc6 {[%clk 0:02:14.3]} 14. Bxd5
{[%clk 0:01:51.4]} 14... exd5 {[%clk 0:01:58.9]} 15. Nxd5 {[%clk 0:01:50.4]}
15... Nxd5 {[%clk 0:01:54]} 16. Qxd5 {[%clk 0:01:50.2]} 16... Ne7 {[%clk
0:01:45.9]} 17. Qf3 {[%clk 0:01:47.3]} 17... Qc6 {[%clk 0:01:37.9]} 18. Qf4
{[%clk 0:01:36.6]} 18... Ng6 {[%clk 0:01:36.5]} 19. Qf5 {[%clk 0:01:32.4]} 19...
Qe6 {[%clk 0:01:23]} 20. Qe4 {[%clk 0:01:30.1]} 20... O-O {[%clk 0:01:21.6]} 21.
Qf3 {[%clk 0:01:25.2]} 21... Qg4 {[%clk 0:00:53.6]} 22. Qd5 {[%clk 0:01:14]}
22... Bb6 {[%clk 0:00:47.7]} 23. Re4 {[%clk 0:01:11.4]} 23... Qe6 {[%clk
0:00:44.8]} 24. Qb5 {[%clk 0:01:01.4]} 24... Rac8 {[%clk 0:00:42]} 25. c3 {[%clk
0:00:53]} 25... Rc5 {[%clk 0:00:41.4]} 26. Qe2 {[%clk 0:00:50.6]} 26... Rxe5
{[%clk 0:00:41.1]} 27. Rxe5 {[%clk 0:00:51]} 27... Qxe5 {[%clk 0:00:40.3]} 28.
Qxh5 {[%clk 0:00:51.6]} 28... Rd8 {[%clk 0:00:35.9]} 29. Qg4 {[%clk 0:00:43.7]}
29... Rd2 {[%clk 0:00:34.6]} 30. Bxd2 {[%clk 0:00:42.7]} 1-0